fUSD/lending_fUSD_20251025
["ID","MTS","AMOUNT","RATE_DAILY","PERIOD"]
[392350672,1761393041737,-151.0,0.00032876,30]
[392350673,1761393041747,-500.0,0.00032876,9]
[392350674,1761393041758,-500.0,0.00032876,9]
[392350675,1761393041767,-500.0,0.00032876,9]
[392350676,1761393041777,-500.0,0.00032876,9]
[392350677,1761393041786,-628.44,0.00032876,9]
[392350678,1761393041796,-200.0,0.000329,12]
[392350679,1761393041805,-13334.9307404,0.00032991,3]
[392350680,1761393041814,-22331.04725816,0.00033001,2]
[392350681,1761393041825,-1244.75,0.00033038,2]
[392350682,1761393041836,-255.0,0.00033079,2]
[392350683,1761393041845,-200.0,0.0003308,2]
[392350684,1761393041855,-1000.0,0.0003311,2]
[392350685,1761393041864,-4956.53,0.00033116,2]
[392350686,1761393041873,-500.0,0.00033127,5]
[392350687,1761393041883,-26669.8614807,0.0003314,3]
[392350688,1761393041893,-500.0,0.00033149,2]
[392350689,1761393041903,-885.44,0.00033149,9]
[392350690,1761393041912,-516.32,0.0003315,9]
[392350691,1761393041922,-452.55679002,0.0003315,9]
[392350692,1761393041931,-500.0,0.0003315,9]
[392350693,1761393041941,-500.0,0.0003315,9]
[392350694,1761393041952,-500.0,0.0003315,9]
[392350695,1761393041962,-500.0,0.0003315,9]
[392350696,1761393041972,-500.0,0.0003315,9]
[392350697,1761393041982,-500.0,0.0003315,9]
[392350698,1761393041992,-500.0,0.0003315,9]
[392350699,1761393042003,-500.0,0.0003315,9]
[392350700,1761393042013,-500.0,0.0003315,9]
[392350701,1761393042023,-503.4040091,0.0003315,9]
[392350702,1761393042033,-500.0,0.0003315,9]
[392350703,1761393042044,-285.56356171,0.0003315,9]
[392350704,1761393042054,-500.0,0.0003315,9]
[392350705,1761393042066,-500.0,0.0003315,9]
[392350706,1761393042076,-500.0,0.0003315,9]
[392350707,1761393042085,-500.0,0.0003315,9]
[392350708,1761393042094,-709.21,0.0003315,9]
[392350709,1761393042106,-500.0,0.0003315,9]
[392350710,1761393042116,-500.0,0.0003315,9]
[392350711,1761393042128,-500.0,0.0003315,9]
[392350712,1761393042138,-500.0,0.0003315,9]
[392350713,1761393042149,-500.0,0.0003315,9]
[392350714,1761393042162,-184.88066642,0.0003315,9]
[392350715,1761393042173,-500.0,0.0003315,9]
[392350716,1761393042184,-500.0,0.0003315,9]
[392350717,1761393042195,-500.0,0.0003315,9]
[392350718,1761393042204,-500.0,0.0003315,9]
[392350719,1761393042214,-500.0,0.0003315,9]
[392350720,1761393042223,-500.0,0.0003315,9]
[392350721,1761393042232,-500.0,0.0003315,9]
[392350722,1761393042242,-500.0,0.0003315,9]
[392350723,1761393042252,-500.0,0.0003315,9]
[392350725,1761393042261,-942.51,0.0003315,9]
[392350726,1761393042270,-500.0,0.0003315,9]
[392350728,1761393042279,-500.0,0.0003315,9]
[392350730,1761393042288,-500.0,0.0003315,9]
[392350731,1761393042298,-500.0,0.0003315,9]
[392350732,1761393042308,-500.0,0.0003315,9]
[392350733,1761393042319,-500.0,0.0003315,9]
[392350734,1761393042328,-553.68,0.0003315,9]
[392350735,1761393042338,-500.0,0.0003315,9]
[392350736,1761393042348,-500.0,0.0003315,9]
[392350737,1761393042357,-151.0,0.0003315,30]
[392350738,1761393042367,-500.0,0.0003315,9]
[392350739,1761393042376,-500.0,0.0003315,9]
[392350740,1761393042385,-500.0,0.0003315,9]
[392350741,1761393042395,-500.0,0.0003315,9]
[392350742,1761393042405,-500.0,0.0003315,9]
[392350743,1761393042414,-151.0,0.0003315,30]
[392350744,1761393042424,-500.0,0.0003315,9]
[392350745,1761393042434,-500.0,0.0003315,9]
[392350746,1761393042443,-500.0,0.0003315,9]
[392350747,1761393042452,-500.0,0.0003315,9]
[392350748,1761393042462,-500.0,0.0003315,9]
[392350749,1761393042472,-500.0,0.0003315,7]
[392350751,1761393042481,-500.0,0.0003315,9]
[392350752,1761393042490,-500.0,0.0003315,9]
[392350753,1761393042500,-500.0,0.0003315,9]
[392350754,1761393042509,-500.0,0.0003315,9]
[392350755,1761393042519,-500.0,0.0003315,9]
[392350757,1761393042529,-500.0,0.0003315,9]
[392350758,1761393042538,-601.98,0.0003315,9]
[392350759,1761393042548,-500.0,0.0003315,9]
[392350760,1761393042558,-500.0,0.0003315,9]
[392350761,1761393042567,-500.0,0.0003315,9]
[392350762,1761393042576,-500.0,0.0003315,9]
[392350763,1761393042586,-500.0,0.0003315,9]
[392350764,1761393042595,-500.0,0.0003315,9]
[392350765,1761393042605,-151.0,0.0003315,30]
[392350766,1761393042615,-500.0,0.0003315,9]
[392350767,1761393042624,-500.0,0.0003315,9]
[392350768,1761393042633,-500.0,0.0003315,9]
[392350769,1761393042643,-500.0,0.0003315,9]
[392350770,1761393042652,-500.0,0.0003315,9]
[392350771,1761393042661,-580.5,0.0003315,9]
[392350772,1761393042671,-151.0,0.0003315,30]
[392350773,1761393042680,-500.0,0.0003315,9]
[392350774,1761393042690,-500.0,0.0003315,9]
[392350775,1761393042700,-151.0,0.0003315,30]
[392350776,1761393042709,-500.0,0.0003315,9]
[392350777,1761393042718,-500.0,0.0003315,9]
[392350778,1761393042728,-151.0,0.0003315,30]
[392350779,1761393042737,-500.0,0.0003315,9]
[392350780,1761393042747,-500.0,0.0003315,9]
[392350781,1761393042756,-512.1,0.0003315,9]
[392350782,1761393042766,-500.0,0.0003315,9]
[392350783,1761393042776,-500.0,0.0003315,9]
[392350784,1761393042786,-500.0,0.0003315,9]
[392350785,1761393042795,-500.0,0.0003315,9]
[392350786,1761393042805,-27349.58,0.0003315,9]
[392350787,1761393042814,-500.0,0.0003315,9]
[392350788,1761393042824,-500.0,0.0003315,9]
[392350789,1761393042833,-612.62,0.0003315,9]
[392350790,1761393042843,-500.0,0.0003315,9]
[392350791,1761393042852,-500.0,0.0003315,9]
[392350792,1761393042862,-500.0,0.0003315,9]
[392350793,1761393042871,-647.33,0.0003315,9]
[392350794,1761393042881,-500.0,0.0003315,9]
[392350796,1761393042891,-601.16,0.0003315,9]
[392350797,1761393042901,-500.0,0.0003315,9]
[392350798,1761393042910,-500.0,0.0003315,9]
[392350799,1761393042920,-544.29,0.0003315,9]
[392350800,1761393042930,-500.0,0.0003315,9]
[392350801,1761393042940,-624.17,0.0003315,9]
[392350802,1761393042950,-500.0,0.0003315,9]
[392350803,1761393042960,-500.0,0.0003315,9]
[392350804,1761393042969,-500.0,0.0003315,9]
[392350805,1761393042980,-1038.04,0.0003315,9]
[392350806,1761393042989,-500.0,0.0003315,9]
[392350807,1761393042999,-500.0,0.0003315,9]
[392350808,1761393043010,-500.0,0.0003315,9]
[392350809,1761393043019,-543.66,0.0003315,9]
[392350810,1761393043029,-505.02638443,0.0003315,9]
[392350811,1761393043039,-151.0,0.0003315,30]
[392350813,1761393043050,-500.0,0.0003315,9]
[392350816,1761393043059,-500.0,0.0003315,9]
[392350819,1761393043069,-500.0,0.0003315,9]
[392350823,1761393043079,-500.0,0.0003315,9]
[392350827,1761393043090,-500.0,0.0003315,9]
[392350830,1761393043100,-500.0,0.0003315,9]
[392350833,1761393043110,-500.0,0.0003315,9]
[392350836,1761393043120,-500.0,0.0003315,9]
[392350841,1761393043130,-500.0,0.0003315,9]
[392350844,1761393043140,-500.0,0.0003315,9]
[392350847,1761393043154,-1864.54,0.0003315,9]
[392350849,1761393043168,-868.13,0.0003315,9]
[392350851,1761393043179,-500.0,0.0003315,9]
[392350853,1761393043188,-500.0,0.0003315,9]
[392350855,1761393043199,-500.0,0.0003315,9]
[392350857,1761393043210,-624.88,0.0003315,9]
[392350859,1761393043219,-500.0,0.0003315,9]
[392350860,1761393043232,-151.0,0.0003315,30]
[392350861,1761393043243,-500.0,0.0003315,9]
[392350862,1761393043255,-500.0,0.0003315,9]
[392350863,1761393043266,-500.0,0.0003315,9]
[392350864,1761393043276,-500.0,0.0003315,9]
[392350865,1761393043287,-500.0,0.0003315,9]
[392350866,1761393043296,-500.0,0.0003315,9]
[392350867,1761393043306,-500.0,0.0003315,9]
[392350868,1761393043315,-500.0,0.0003315,9]
[392350869,1761393043325,-359.40308918,0.0003315,9]
[392350870,1761393043335,-500.0,0.0003315,9]
[392350871,1761393043344,-500.0,0.0003315,9]
[392350872,1761393043355,-500.0,0.0003315,9]
[392350873,1761393043364,-500.0,0.0003315,9]
[392350874,1761393043374,-501.95,0.0003315,9]
[392350875,1761393043383,-500.0,0.0003315,9]
[392350876,1761393043393,-500.0,0.0003315,9]
[392350877,1761393043403,-500.0,0.0003315,2]
[392350878,1761393043413,-500.0,0.0003315,9]
[392350879,1761393043423,-500.0,0.0003315,9]
[392350880,1761393043433,-500.0,0.0003315,9]
[392350881,1761393043443,-566.51039584,0.0003315,9]
[392350882,1761393043453,-628.44,0.0003315,9]
[392350883,1761393043463,-7688.42380027,0.00033159,2]
[392350884,1761393043473,-555.0,0.00033172,2]
[392350885,1761393043482,-13334.9307404,0.0003319,3]
[392350886,1761393043492,-333.0,0.00033221,2]
[392350887,1761393043501,-666.0,0.00033222,3]
[392350888,1761393043511,-5459.0,0.00033259,2]
[392350889,1761393043521,-3803.66,0.00033264,2]
[392350890,1761393043531,-501.56499723,0.00033265,5]
[392350891,1761393043541,-364.11,0.00033288,2]
[392350892,1761393043551,-13334.9307404,0.00033352,3]
[392350893,1761393043560,-22331.04725816,0.00033363,2]
[392350894,1761393043570,-151.0,0.00033371,30]
[392350895,1761393043580,-151.0,0.00033371,30]
[392350896,1761393043589,-160.375702,0.00033371,30]
[392350897,1761393043603,-151.0,0.00033371,30]
[392350898,1761393043613,-1000.0,0.00033384,2]
[392350899,1761393043623,-151.0,0.00033414,30]
[392350900,1761393043633,-151.0,0.00033414,30]
[392350901,1761393043643,-26669.8614807,0.00033414,3]
[392350902,1761393043652,-8039.00642189,0.00033414,3]
[392350903,1761393043663,-516.32,0.00033424,9]
[392350904,1761393043673,-500.0,0.00033424,9]
[392350905,1761393043683,-500.0,0.00033424,9]
[392350906,1761393043694,-500.0,0.00033424,9]
[392350907,1761393043703,-500.0,0.00033424,9]
[392350908,1761393043713,-500.0,0.00033424,9]
[392350909,1761393043723,-160.13181162,0.00033424,9]
[392350910,1761393043733,-500.0,0.00033424,9]
[392350912,1761393043743,-500.0,0.00033424,9]
[392350913,1761393043753,-500.0,0.00033424,9]
[392350914,1761393043764,-500.0,0.00033424,9]
[392350915,1761393043774,-500.0,0.00033424,9]
[392350916,1761393043784,-500.0,0.00033424,9]
[392350917,1761393043794,-500.0,0.00033424,9]
[392350918,1761393043807,-500.0,0.00033424,9]
[392350919,1761393043817,-709.21,0.00033424,9]
[392350920,1761393043827,-500.0,0.00033424,9]
[392350921,1761393043836,-552.17448595,0.00033424,9]
[392350922,1761393043847,-500.0,0.00033424,9]
[392350923,1761393043857,-500.0,0.00033424,9]
[392350924,1761393043868,-165.06001651,0.00033424,9]
[392350925,1761393043879,-500.0,0.00033424,9]
[392350926,1761393043888,-500.0,0.00033424,9]
[392350927,1761393043898,-500.0,0.00033424,9]
[392350928,1761393043908,-500.0,0.00033424,9]
[392350929,1761393043918,-500.0,0.00033424,9]
[392350930,1761393043928,-500.0,0.00033424,9]
[392350931,1761393043938,-500.0,0.00033424,9]
[392350932,1761393043949,-500.0,0.00033424,9]
[392350933,1761393043960,-500.0,0.00033424,9]
[392350934,1761393043973,-942.51,0.00033424,9]
[392350935,1761393043984,-500.0,0.00033424,9]
[392350936,1761393043994,-351.68718812,0.00033424,9]
[392350937,1761393044004,-500.0,0.00033424,9]
[392350938,1761393044014,-503.27643754,0.00033424,9]
[392350939,1761393044024,-500.0,0.00033424,9]
[392350940,1761393044034,-500.0,0.00033424,9]
[392350941,1761393044047,-553.68,0.00033424,9]
[392350942,1761393044057,-500.0,0.00033424,9]
[392350943,1761393044068,-500.0,0.00033424,9]
[392350944,1761393044079,-500.0,0.00033424,9]
[392350945,1761393044090,-500.0,0.00033424,9]
[392350946,1761393044342,-500.0,0.00033424,9]
[392350947,1761393044352,-500.0,0.00033424,9]
[392350948,1761393044361,-500.0,0.00033424,9]
[392350949,1761393044370,-500.0,0.00033424,9]
[392350950,1761393044379,-221.03760423,0.00033424,9]
[392350951,1761393044389,-500.0,0.00033424,9]
[392350952,1761393044398,-500.0,0.00033424,9]
[392350953,1761393044407,-593.97717865,0.00033424,9]
[392350954,1761393044418,-500.0,0.00033424,7]
[392350955,1761393044428,-500.0,0.00033424,9]
[392350956,1761393044437,-500.0,0.00033424,9]
[392350957,1761393044446,-500.0,0.00033424,9]
[392350958,1761393044456,-500.0,0.00033424,9]
[392350959,1761393044465,-500.0,0.00033424,9]
[392350960,1761393044475,-500.0,0.00033424,9]
[392350961,1761393044484,-601.98,0.00033424,9]
[392350962,1761393044494,-500.0,0.00033424,9]
[392350963,1761393044503,-500.0,0.00033424,9]
[392350964,1761393044513,-619.74834179,0.00033424,9]
[392350965,1761393044522,-500.0,0.00033424,9]
[392350966,1761393044532,-500.0,0.00033424,9]
[392350967,1761393044541,-500.0,0.00033424,9]
[392350968,1761393044551,-267.782194,0.00033424,30]
[392350969,1761393044560,-500.0,0.00033424,9]
[392350970,1761393044569,-500.0,0.00033424,9]
[392350971,1761393044579,-500.0,0.00033424,9]
[392350972,1761393044591,-500.0,0.00033424,9]
[392350973,1761393044601,-500.0,0.00033424,9]
[392350974,1761393044612,-580.5,0.00033424,9]
[392350975,1761393044622,-151.0,0.00033424,30]
[392350976,1761393044631,-500.0,0.00033424,9]
[392350977,1761393044640,-500.0,0.00033424,9]
[392350978,1761393044649,-151.0,0.00033424,30]
[392350979,1761393044658,-500.0,0.00033424,9]
[392350980,1761393044668,-500.0,0.00033424,9]
[392350981,1761393044677,-151.0,0.00033424,30]
[392350982,1761393044686,-500.0,0.00033424,9]
[392350983,1761393044695,-500.0,0.00033424,9]
[392350984,1761393044704,-512.1,0.00033424,9]
[392350985,1761393044713,-441.77409823,0.00033424,9]
[392350986,1761393044722,-644.92113861,0.00033424,9]
[392350987,1761393044732,-500.0,0.00033424,9]
[392350988,1761393044741,-500.0,0.00033424,9]
[392350989,1761393044751,-27349.58,0.00033424,9]
[392350990,1761393044762,-500.0,0.00033424,9]
[392350991,1761393044773,-500.0,0.00033424,9]
[392350992,1761393044785,-612.62,0.00033424,9]
[392350993,1761393044794,-500.0,0.00033424,9]
[392350994,1761393044803,-500.0,0.00033424,9]
[392350995,1761393044813,-500.0,0.00033424,9]
[392350996,1761393044822,-647.33,0.00033424,9]
[392350997,1761393044831,-500.0,0.00033424,9]
[392350998,1761393044842,-601.16,0.00033424,9]
[392350999,1761393044851,-500.0,0.00033424,9]
[392351000,1761393044860,-500.0,0.00033424,9]
[392351001,1761393044869,-544.29,0.00033424,9]
[392351002,1761393044878,-500.0,0.00033424,9]
[392351003,1761393044887,-624.17,0.00033424,9]
[392351004,1761393044896,-500.0,0.00033424,9]
[392351005,1761393044906,-362.02419864,0.00033424,9]
[392351006,1761393044915,-500.0,0.00033424,9]
[392351007,1761393044925,-1038.04,0.00033424,9]
[392351008,1761393044934,-500.0,0.00033424,9]
[392351009,1761393044944,-615.81036183,0.00033424,9]
[392351010,1761393044953,-500.0,0.00033424,9]
[392351011,1761393044963,-543.66,0.00033424,9]
[392351012,1761393044973,-500.0,0.00033424,9]
[392351013,1761393044983,-181.13584097,0.00033424,9]
[392351014,1761393044992,-500.0,0.00033424,9]
[392351015,1761393045002,-500.0,0.00033424,9]
[392351016,1761393045011,-500.0,0.00033424,9]
[392351017,1761393045020,-500.0,0.00033424,9]
[392351018,1761393045030,-500.0,0.00033424,9]
[392351019,1761393045039,-250.93898268,0.00033424,9]
[392351020,1761393045048,-500.0,0.00033424,9]
[392351021,1761393045057,-500.0,0.00033424,9]
[392351022,1761393045066,-1864.54,0.00033424,9]
[392351023,1761393045076,-868.13,0.00033424,9]
[392351024,1761393045085,-500.0,0.00033424,9]
[392351025,1761393045094,-500.0,0.00033424,9]
[392351026,1761393045104,-500.0,0.00033424,9]
[392351027,1761393045113,-624.88,0.00033424,9]
[392351028,1761393045122,-500.0,0.00033424,9]
[392351029,1761393045132,-500.0,0.00033424,9]
[392351030,1761393045142,-500.0,0.00033424,9]
[392351031,1761393045152,-500.0,0.00033424,9]
[392351032,1761393045164,-500.0,0.00033424,9]
[392351033,1761393045173,-500.0,0.00033424,9]
[392351034,1761393045182,-500.0,0.00033424,9]
[392351035,1761393045192,-500.0,0.00033424,9]
[392351036,1761393045202,-500.0,0.00033424,9]
[392351037,1761393045212,-500.0,0.00033424,9]
[392351038,1761393045222,-500.0,0.00033424,9]
[392351039,1761393045233,-500.0,0.00033424,9]
[392351040,1761393045243,-500.0,0.00033424,9]
[392351041,1761393045252,-501.95,0.00033424,9]
[392351042,1761393045261,-500.0,0.00033424,9]
[392351044,1761393045271,-500.0,0.00033424,9]
[392351046,1761393045282,-500.0,0.00033424,2]
[392351048,1761393045292,-500.0,0.00033424,9]
[392351050,1761393045302,-500.0,0.00033424,9]
[392351053,1761393045311,-500.0,0.00033424,9]
[392351055,1761393045321,-628.44,0.00033424,9]
[392351057,1761393045330,-151.73434894,0.00033428,6]
[392351059,1761393045339,-2194.0,0.00033486,7]
[392351061,1761393045348,-2194.0,0.00033494,7]
[392351062,1761393045358,-13334.9307404,0.00033529,3]
[392351065,1761393045368,-8039.00642189,0.00033529,3]
[392351067,1761393045378,-3613.0,0.00033539,2]
[392351068,1761393045388,-1000.0,0.00033658,2]
[392351069,1761393045397,-283.124772,0.00033688,30]
[392351070,1761393045407,-26669.8614807,0.00033688,3]
[392351072,1761393045417,-24117.0192657,0.00033688,3]
[392351075,1761393045427,-516.32,0.00033698,9]
[392351076,1761393045436,-500.0,0.00033698,9]
[392351077,1761393045445,-500.0,0.00033698,9]
[392351078,1761393045454,-500.0,0.00033698,9]
[392351079,1761393045464,-500.0,0.00033698,9]
[392351080,1761393045474,-500.0,0.00033698,9]
[392351081,1761393045483,-452.91835209,0.00033698,9]
[392351082,1761393045492,-569.75189559,0.00033698,9]
[392351083,1761393045501,-500.0,0.00033698,9]
[392351084,1761393045510,-500.0,0.00033698,9]
[392351085,1761393045520,-500.0,0.00033698,9]
[392351086,1761393045529,-500.0,0.00033698,9]
[392351087,1761393045539,-500.0,0.00033698,9]
[392351088,1761393045548,-500.0,0.00033698,9]
[392351089,1761393045557,-709.21,0.00033698,9]
[392351090,1761393045566,-500.0,0.00033698,9]
[392351091,1761393045575,-445.59151638,0.00033698,9]
[392351092,1761393045585,-500.0,0.00033698,9]
[392351093,1761393045594,-500.0,0.00033698,9]
[392351094,1761393045603,-500.0,0.00033698,9]
[392351095,1761393045612,-500.0,0.00033698,9]
[392351096,1761393045622,-500.0,0.00033698,9]
[392351097,1761393045631,-500.0,0.00033698,9]
[392351098,1761393045640,-500.0,0.00033698,9]
[392351099,1761393045649,-500.0,0.00033698,9]
[392351100,1761393045659,-500.0,0.00033698,9]
[392351101,1761393045668,-500.0,0.00033698,9]
[392351102,1761393045677,-942.51,0.00033698,9]
[392351103,1761393045687,-500.0,0.00033698,9]
[392351104,1761393045696,-500.0,0.00033698,9]
[392351105,1761393045705,-500.0,0.00033698,9]
[392351106,1761393045714,-500.0,0.00033698,9]
[392351107,1761393045724,-553.68,0.00033698,9]
[392351108,1761393045733,-500.0,0.00033698,9]
[392351109,1761393045742,-500.0,0.00033698,9]
[392351110,1761393045751,-151.0,0.00033698,30]
[392351111,1761393045760,-500.0,0.00033698,9]
[392351112,1761393045768,-500.0,0.00033698,9]
[392351113,1761393045778,-500.0,0.00033698,9]
[392351114,1761393045787,-500.0,0.00033698,9]
[392351115,1761393045796,-500.0,0.00033698,9]
[392351116,1761393045805,-151.0,0.00033698,30]
[392351117,1761393045814,-500.0,0.00033698,9]
[392351118,1761393045824,-151.54071892,0.00033698,9]
[392351119,1761393045833,-579.80442752,0.00033698,9]
[392351120,1761393045842,-500.0,0.00033698,7]
[392351121,1761393045851,-500.0,0.00033698,9]
[392351122,1761393045861,-500.0,0.00033698,9]
[392351123,1761393045870,-500.0,0.00033698,9]
[392351124,1761393045879,-500.0,0.00033698,9]
[392351126,1761393045889,-500.0,0.00033698,9]
[392351128,1761393045898,-500.0,0.00033698,9]
[392351129,1761393045908,-601.98,0.00033698,9]
[392351130,1761393045917,-500.0,0.00033698,9]
[392351131,1761393045926,-500.0,0.00033698,9]
[392351132,1761393045935,-500.0,0.00033698,9]
[392351133,1761393045944,-500.0,0.00033698,9]
[392351134,1761393045954,-500.0,0.00033698,9]
[392351135,1761393045963,-500.0,0.00033698,9]
[392351136,1761393045972,-500.0,0.00033698,9]
[392351137,1761393045981,-500.0,0.00033698,9]
[392351138,1761393045991,-500.0,0.00033698,9]
[392351139,1761393046000,-500.0,0.00033698,9]
[392351140,1761393046010,-580.5,0.00033698,9]
[392351141,1761393046019,-500.0,0.00033698,9]
[392351142,1761393046028,-500.0,0.00033698,9]
[392351143,1761393046037,-500.0,0.00033698,9]
[392351144,1761393046046,-500.0,0.00033698,9]
[392351145,1761393046055,-500.0,0.00033698,9]
[392351146,1761393046064,-500.0,0.00033698,9]
[392351147,1761393046074,-512.1,0.00033698,9]
[392351148,1761393046085,-500.0,0.00033698,9]
[392351149,1761393046094,-500.0,0.00033698,9]
[392351150,1761393046103,-27349.58,0.00033698,9]
[392351151,1761393046112,-500.0,0.00033698,9]
[392351152,1761393046122,-500.0,0.00033698,9]
[392351153,1761393046132,-612.62,0.00033698,9]
[392351154,1761393046141,-280.12887664,0.00033698,9]
[392351155,1761393046150,-500.0,0.00033698,9]
[392351156,1761393046164,-500.0,0.00033698,9]
[392351157,1761393046173,-647.33,0.00033698,9]
[392351158,1761393046183,-500.0,0.00033698,9]
[392351159,1761393046191,-601.16,0.00033698,9]
[392351160,1761393046202,-500.0,0.00033698,9]
[392351161,1761393046211,-500.0,0.00033698,9]
[392351162,1761393046221,-544.29,0.00033698,9]
[392351163,1761393046231,-500.0,0.00033698,9]
[392351164,1761393046239,-624.17,0.00033698,9]
[392351165,1761393046249,-500.0,0.00033698,9]
[392351166,1761393046258,-500.0,0.00033698,9]
[392351167,1761393046267,-1038.04,0.00033698,9]
[392351168,1761393046277,-500.0,0.00033698,9]
[392351169,1761393046286,-500.0,0.00033698,9]
[392351170,1761393046296,-543.66,0.00033698,9]
[392351171,1761393046305,-500.0,0.00033698,9]
[392351172,1761393046314,-230.65644707,0.00033698,9]
[392351173,1761393046323,-480.57065793,0.00033698,9]
[392351174,1761393046332,-500.0,0.00033698,9]
[392351175,1761393046341,-500.0,0.00033698,9]
[392351176,1761393046350,-500.0,0.00033698,9]
[392351177,1761393046359,-500.0,0.00033698,9]
[392351178,1761393046368,-500.0,0.00033698,9]
[392351179,1761393046377,-1864.54,0.00033698,9]
[392351180,1761393046386,-868.13,0.00033698,9]
[392351181,1761393046395,-232.63772893,0.00033698,9]
[392351182,1761393046404,-500.0,0.00033698,9]
[392351183,1761393046414,-500.0,0.00033698,9]
[392351184,1761393046423,-624.88,0.00033698,9]
[392351185,1761393046433,-500.0,0.00033698,9]
[392351186,1761393046442,-500.0,0.00033698,9]
[392351187,1761393046452,-500.0,0.00033698,9]
[392351188,1761393046462,-500.0,0.00033698,9]
[392351189,1761393046472,-500.0,0.00033698,9]
[392351190,1761393046481,-500.0,0.00033698,9]
[392351191,1761393046490,-500.0,0.00033698,9]
[392351192,1761393046499,-500.0,0.00033698,9]
[392351193,1761393046508,-641.97188412,0.00033698,9]
[392351194,1761393046518,-500.0,0.00033698,9]
[392351195,1761393046527,-500.0,0.00033698,9]
[392351196,1761393046536,-500.0,0.00033698,9]
[392351197,1761393046545,-500.0,0.00033698,9]
[392351198,1761393046553,-501.95,0.00033698,9]
[392351199,1761393046562,-500.0,0.00033698,9]
[392351200,1761393046571,-500.0,0.00033698,9]
[392351201,1761393046580,-500.0,0.00033698,2]
[392351202,1761393046590,-500.0,0.00033698,9]
[392351203,1761393046656,-500.0,0.00033698,9]
[392351204,1761393046667,-500.0,0.00033698,9]
[392351205,1761393046676,-628.44,0.00033698,9]
[392351206,1761393046685,-500.0,0.000337,12]
[392351207,1761393046695,-13334.9307404,0.00033714,3]
[392351208,1761393046704,-16078.0128438,0.00033714,3]
[392351209,1761393046713,-885.44,0.00033724,9]
[392351210,1761393046722,-22331.04725816,0.00033724,2]
[392351211,1761393046731,-7688.42380027,0.00033749,2]
[392351212,1761393046740,-800.0,0.000338,12]
[392351213,1761393046751,-476.4830027,0.00033806,2]
[392351214,1761393046760,-154.69191,0.0003385,2]
[392351215,1761393046770,-151.0,0.00033865,30]
[392351216,1761393046782,-151.0,0.00033865,30]
[392351217,1761393046792,-151.73434894,0.00033876,7]
[392351218,1761393046801,-1100.0,0.000339,12]
[392351219,1761393046811,-1000.0,0.00033932,2]
[392351220,1761393046820,-175.32459578,0.00033955,2]
[392351221,1761393046828,-26669.8614807,0.00033962,3]
[392351222,1761393046839,-32156.0256876,0.00033962,3]
[392351223,1761393046847,-476.4830027,0.00033965,3]
[392351224,1761393046857,-40004.7922211,0.00033965,3]
[392351225,1761393046867,-32156.0256876,0.00033965,3]
[392351226,1761393046878,-13334.9307404,0.00033966,3]
[392351227,1761393046888,-24117.0192657,0.00033966,3]